fUSD/lending_fUSD_20250814
["ID","MTS","AMOUNT","RATE_DAILY","PERIOD"]
[379104552,1755142245417,-548.55177897,0.00032877,7]
[379104554,1755142245427,-6742.41222146,0.00032942,30]
[379104556,1755142245436,-4613.72140636,0.00033,2]
[379104558,1755142245445,-24225.06790717,0.00033,2]
[379104560,1755142245455,-373.07297731,0.00033008,2]
[379104562,1755142245464,-162.9,0.00033165,2]
[379104564,1755142245474,-414.0,0.00033226,30]
[379104566,1755142245484,-4000.0,0.00033333,4]
[379104568,1755142245494,-2222.644,0.00033369,35]
[379104570,1755142245503,-180.229,0.00033369,35]
[379104572,1755142245512,-20164.03459503,0.0003347,2]
[379104574,1755142245522,-1000.0,0.00033552,2]
[379104576,1755142245531,-566.37,0.0003368,30]
[379104578,1755142245541,-1296.0,0.00034061,2]
[379104580,1755142245550,-982.0,0.00034061,2]
[379104582,1755142245559,-426.125,0.00034061,2]
[379104584,1755142245568,-598.0,0.00034061,2]
[379104586,1755142245577,-893.0,0.00034061,2]
[379104588,1755142245587,-1172.0,0.00034061,2]
[379104590,1755142245596,-505.0,0.00034303,14]
[379104592,1755142245605,-295.34,0.00034324,2]
[379104594,1755142245615,-152.0,0.00034354,3]
[379104596,1755142245624,-386.87667747,0.00034377,2]
[379104598,1755142245634,-12094.68892966,0.00034485,2]
[379104600,1755142245643,-174.99,0.0003462,2]
[379104602,1755142245652,-152.0,0.00034666,4]
[379104604,1755142245661,-6086.0,0.00034866,2]
[379104606,1755142245671,-2028.0,0.00034866,2]
[379104608,1755142245680,-810.0,0.00034866,2]
[379104610,1755142245690,-4727.23173003,0.000349,2]
[379104612,1755142245699,-152.0,0.00034979,5]
[379104614,1755142245708,-10720.28379849,0.00034999,2]
[379104616,1755142245718,-1230.51007506,0.00035,2]
[379104618,1755142245727,-16334.47685183,0.00035,3]
[379104620,1755142245736,-10643.16097299,0.00035,2]
[379104622,1755142245746,-384.53843819,0.00035,120]
[379104624,1755142245755,-198.0,0.000352,2]
[379104626,1755142245767,-762.0,0.00035228,5]
[379104628,1755142245778,-152.0,0.00035291,6]
[379104630,1755142245787,-411.0,0.00035441,30]
[379104632,1755142245796,-4727.23172998,0.00035533,2]
[379104634,1755142245806,-152.0,0.00035604,7]
[379104636,1755142245816,-401.19111454,0.00035746,2]
[379104638,1755142245825,-1400.0,0.000359,13]
[379104640,1755142245835,-152.0,0.00035917,8]
[379104642,1755142245844,-95141.55202936,0.00036,2]
[379104644,1755142245854,-566.37,0.00036016,60]
[379104646,1755142245864,-505.0,0.00036061,16]
[379104648,1755142245873,-4727.23172998,0.00036165,2]
[379104650,1755142245883,-152.0,0.00036229,9]
[379104652,1755142245893,-1034.49868449,0.0003625,2]
[379104654,1755142245902,-158.17281992,0.0003625,9]
[379104656,1755142245911,-194.0,0.0003638,2]
[379104658,1755142245920,-152.0,0.00036542,10]
[379104660,1755142245930,-4727.23172998,0.00036798,2]
[379104662,1755142245939,-907.5,0.00036798,7]
[379104664,1755142245948,-907.5,0.00036798,7]
[379104666,1755142245958,-187.79791,0.00036798,7]
[379104668,1755142245967,-187.79791,0.00036798,7]
[379104670,1755142245977,-152.0,0.00036854,11]
[379104672,1755142245988,-3503.9425512,0.0003686,2]
[379104674,1755142245998,-1000.0,0.00036908,2]
[379104676,1755142246008,-13831.65293897,0.0003691,2]
[379104678,1755142246017,-723.259,0.00037061,2]
[379104680,1755142246027,-982.0,0.00037061,2]
[379104682,1755142246038,-598.0,0.00037061,2]
[379104684,1755142246048,-893.0,0.00037061,2]
[379104686,1755142246059,-1172.0,0.00037061,2]
[379104688,1755142246073,-416.03518578,0.00037115,2]
[379104690,1755142246083,-333.8,0.00037133,30]
[379104692,1755142246092,-5000.0,0.0003714,2]
[379104694,1755142246102,-152.0,0.00037167,12]
[379104696,1755142246111,-5745.99138665,0.000372,120]
[379104698,1755142246121,-5745.99138661,0.000372,120]
[379104700,1755142246131,-5745.99138661,0.000372,120]
[379104702,1755142246140,-5745.99138661,0.000372,120]
[379104704,1755142246149,-5745.99138661,0.000372,120]
[379104706,1755142246159,-36066.73,0.0003724,7]
[379104708,1755142246168,-23880.99876195,0.0003739,14]
[379104710,1755142246178,-4727.23172998,0.00037431,2]
[379104712,1755142246187,-152.0,0.00037479,13]
[379104714,1755142246197,-190.0,0.0003757,2]
[379104716,1755142246206,-4247.13207236,0.0003759,2]
[379104718,1755142246215,-411.0,0.00037656,30]
[379104720,1755142246225,-152.0,0.00037792,14]
[379104722,1755142246234,-505.0,0.00037818,17]
[379104724,1755142246243,-6086.0,0.00037866,2]
[379104726,1755142246253,-2028.0,0.00037866,2]
[379104728,1755142246263,-810.0,0.00037866,2]
[379104730,1755142246273,-198.02515859,0.0003788,2]
[379104732,1755142246283,-411.0,0.00037973,30]
[379104734,1755142246292,-156.0,0.00038,120]
[379104736,1755142246302,-156.0,0.00038,120]
[379104738,1755142246312,-9988.19213682,0.00038,2]
[379104740,1755142246321,-458.13769775,0.00038,7]
[379104742,1755142246331,-458.13769775,0.00038,30]
[379104744,1755142246340,-151.67,0.00038008,60]
[379104746,1755142246350,-4727.23172998,0.00038063,2]
[379104748,1755142246359,-152.0,0.00038105,15]
[379104750,1755142246369,-151.67,0.00038108,60]
[379104752,1755142246379,-151.67,0.00038208,60]
[379104754,1755142246389,-151.67,0.00038308,60]
[379104756,1755142246400,-566.37,0.00038352,60]
[379104758,1755142246411,-400.0,0.00038356,120]
[379104760,1755142246421,-1000.0,0.00038356,120]
[379104762,1755142246431,-1000.0,0.00038356,120]
[379104764,1755142246440,-1000.0,0.00038356,120]
[379104766,1755142246450,-1000.0,0.00038356,120]
[379104768,1755142246459,-1000.0,0.00038356,120]
[379104770,1755142246469,-1000.0,0.00038356,120]
[379104772,1755142246478,-1000.0,0.00038356,120]
[379104774,1755142246487,-1000.0,0.00038356,120]
[379104776,1755142246497,-874.40695601,0.00038356,120]
[379104778,1755142246507,-231.0,0.00038356,60]
[379104780,1755142246517,-33358.01296358,0.0003836,120]
[379104782,1755142246527,-151.67,0.00038408,120]
[379104784,1755142246627,-152.0,0.00038417,16]
[379104785,1755142246637,-431.42848765,0.00038484,2]
[379104786,1755142246646,-151.67,0.00038508,120]
[379104787,1755142246655,-151.67,0.00038608,120]
[379104788,1755142246664,-4727.23172998,0.00038696,2]
[379104789,1755142246673,-151.67,0.00038708,120]
[379104790,1755142246682,-152.0,0.0003873,17]
[379104792,1755142246691,-186.0,0.0003875,2]
[379104793,1755142246700,-151.67,0.00038808,120]
[379104795,1755142246710,-469.07645672,0.000389,120]
[379104797,1755142246719,-151.67,0.00038908,120]
[379104799,1755142246728,-150.0,0.00038998,2]
[379104801,1755142246737,-7292.13417459,0.00039,10]
[379104803,1755142246747,-1162.34068657,0.00039,120]
[379104805,1755142246756,-151.67,0.00039008,120]
[379104807,1755142246766,-152.0,0.00039042,18]
[379104809,1755142246778,-150.0,0.00039076,2]
[379104811,1755142246791,-151.67,0.00039108,120]
[379104813,1755142246800,-150.0,0.00039127,2]
[379104815,1755142246810,-150.0,0.00039149,2]
[379104817,1755142246819,-150.0,0.00039153,2]
[379104819,1755142246828,-150.0,0.00039166,2]
[379104821,1755142246836,-150.0,0.00039166,2]
[379104823,1755142246847,-150.0,0.00039172,2]
[379104825,1755142246856,-150.0,0.00039176,2]
[379104827,1755142246865,-150.0,0.00039198,2]
[379104829,1755142246874,-151.67,0.00039208,120]
[379104831,1755142246884,-150.0,0.00039241,2]
[379104833,1755142246893,-150.0,0.00039264,2]
[379104835,1755142246902,-151.67,0.00039308,120]
[379104837,1755142246911,-150.0,0.00039314,2]
[379104839,1755142246920,-150.0,0.00039327,2]
[379104841,1755142246928,-4727.23172998,0.00039329,2]
[379104842,1755142246939,-150.0,0.00039335,2]
[379104844,1755142246948,-150.0,0.00039349,2]
[379104846,1755142246956,-150.0,0.00039352,2]
[379104848,1755142246965,-152.0,0.00039355,19]
[379104850,1755142246975,-150.0,0.00039356,2]
[379104852,1755142246984,-150.0,0.00039369,2]
[379104854,1755142246993,-150.0,0.00039381,2]
[379104856,1755142247002,-150.0,0.00039385,2]
[379104858,1755142247011,-500.0,0.00039389,5]
[379104860,1755142247020,-150.0,0.0003939,2]
[379104862,1755142247029,-150.0,0.00039394,2]
[379104864,1755142247039,-168.62834695,0.00039398,2]
[379104866,1755142247048,-150.0,0.00039399,2]
[379104868,1755142247057,-150.0,0.00039402,2]
[379104870,1755142247067,-151.67,0.00039408,120]
[379104872,1755142247076,-150.0,0.00039418,2]
[379104874,1755142247085,-150.0,0.00039441,2]
[379104876,1755142247094,-150.0,0.00039446,2]
[379104878,1755142247103,-150.0,0.00039453,2]
[379104880,1755142247112,-150.0,0.0003946,2]
[379104882,1755142247122,-150.0,0.00039463,2]
[379104884,1755142247131,-150.0,0.00039464,2]
[379104886,1755142247141,-150.0,0.00039464,2]
[379104888,1755142247150,-150.0,0.00039464,2]
[379104889,1755142247159,-150.0,0.00039465,2]
[379104891,1755142247169,-150.0,0.00039482,2]
[379104893,1755142247178,-1000.0,0.00039483,7]
[379104895,1755142247188,-151.67,0.00039508,120]
[379104897,1755142247198,-150.0,0.00039513,2]
[379104899,1755142247208,-150.0,0.00039526,2]
[379104901,1755142247219,-150.0,0.00039531,2]
[379104903,1755142247230,-150.0,0.00039537,2]
[379104905,1755142247239,-150.0,0.00039542,2]
[379104907,1755142247249,-150.0,0.00039548,2]
[379104909,1755142247259,-150.0,0.00039551,2]
[379104911,1755142247268,-150.0,0.00039554,2]
[379104913,1755142247277,-150.0,0.00039555,2]
[379104915,1755142247287,-150.0,0.00039562,2]
[379104917,1755142247296,-150.0,0.00039568,2]
[379104919,1755142247306,-150.0,0.00039571,2]
[379104921,1755142247315,-150.0,0.00039573,2]
[379104923,1755142247325,-150.0,0.00039574,2]
[379104925,1755142247334,-505.0,0.00039576,19]
[379104927,1755142247342,-150.0,0.00039579,2]
[379104929,1755142247351,-150.0,0.00039585,2]
[379104931,1755142247360,-150.0,0.00039599,2]
[379104933,1755142247369,-257.77668,0.000396,2]
[379104935,1755142247378,-2000.0,0.000396,41]
[379104937,1755142247387,-150.0,0.00039606,2]
[379104939,1755142247396,-151.67,0.00039608,120]
[379104941,1755142247405,-8390.36997669,0.0003961,2]
[379104943,1755142247414,-1229.0,0.0003961,2]
[379104945,1755142247423,-19988.21877371,0.0003961,2]
[379104947,1755142247431,-150.0,0.00039612,2]
[379104949,1755142247442,-150.0,0.00039616,2]
[379104950,1755142247450,-246.11,0.00039624,2]
[379104952,1755142247458,-150.0,0.00039627,2]
[379104954,1755142247464,-150.0,0.00039635,7]
[379104956,1755142247473,-150.0,0.0003964,2]
[379104958,1755142247481,-162.9,0.00039654,2]
[379104960,1755142247487,-150.0,0.00039654,2]
[379104962,1755142247494,-150.0,0.0003966,2]
[379104964,1755142247502,-152.0,0.00039668,20]
[379104966,1755142247509,-150.0,0.00039691,2]
[379104968,1755142247516,-150.0,0.00039694,2]
[379104970,1755142247523,-151.52771172,0.00039708,2]
[379104972,1755142247532,-151.67,0.00039708,120]
[379104973,1755142247538,-150.0,0.0003971,2]
[379104975,1755142247546,-150.0,0.00039716,2]
[379104978,1755142247555,-150.0,0.00039716,2]
[379104980,1755142247565,-150.0,0.00039717,2]
[379104982,1755142247573,-400.0,0.00039726,120]
[379104984,1755142247581,-1000.0,0.00039726,7]
[379104985,1755142247588,-164.747116,0.00039726,15]
[379104987,1755142247596,-150.0,0.00039741,2]
[379104990,1755142247605,-150.0,0.00039744,2]
[379104991,1755142247612,-150.0,0.00039745,2]
[379104993,1755142247620,-150.0,0.00039755,2]
[379104995,1755142247629,-150.0,0.00039761,2]
[379104998,1755142247638,-168.93204715,0.00039764,7]
[379105000,1755142247647,-1000.0,0.00039765,7]
[379105002,1755142247655,-1000.0,0.00039784,7]
[379105004,1755142247663,-150.0,0.00039785,2]
[379105006,1755142247671,-150.0,0.00039792,7]
[379105008,1755142247679,-1500.0,0.000398,120]
[379105010,1755142247687,-257.77668,0.000398,2]
[379105012,1755142247696,-1000.0,0.00039804,7]
[379105014,1755142247704,-151.67,0.00039808,120]
[379105016,1755142247711,-150.0,0.00039817,2]
[379105018,1755142247719,-150.0,0.00039829,2]
[379105020,1755142247725,-150.0,0.0003983,2]
[379105021,1755142247732,-150.0,0.00039833,2]
[379105022,1755142247739,-150.0,0.00039836,2]
[379105023,1755142247747,-150.0,0.00039838,2]
[379105024,1755142247757,-1000.0,0.00039843,7]
[379105025,1755142247768,-1000.0,0.00039846,7]
[379105026,1755142247778,-850.44394661,0.00039846,2]
[379105027,1755142247788,-150.0,0.00039847,7]
[379105028,1755142247796,-150.0,0.0003985,2]
[379105029,1755142247805,-230.27754619,0.00039853,2]
[379105030,1755142247816,-150.0,0.00039854,2]
[379105031,1755142247825,-150.0,0.00039855,2]
[379105032,1755142247834,-411.0,0.00039871,90]
[379105033,1755142247843,-150.0,0.00039877,2]
[379105034,1755142247853,-1000.0,0.00039883,7]
[379105035,1755142247862,-150.0,0.00039884,2]
[379105036,1755142247871,-1000.0,0.00039887,7]
[379105037,1755142247880,-150.0,0.00039888,2]
[379105038,1755142247889,-150.0,0.00039896,2]
[379105039,1755142247897,-150.0,0.00039901,7]
[379105040,1755142247906,-1019.1734224,0.00039901,7]
[379105041,1755142247915,-150.0,0.00039902,2]
[379105042,1755142247924,-150.0,0.00039906,2]
[379105043,1755142247933,-151.67,0.00039908,120]
[379105044,1755142247942,-150.0,0.00039909,2]
[379105045,1755142247951,-1000.0,0.00039918,7]
[379105046,1755142247961,-1000.0,0.00039922,7]
[379105047,1755142247970,-182.0,0.0003993,2]
[379105048,1755142247979,-150.0,0.00039934,2]
[379105049,1755142247988,-150.0,0.00039938,2]
[379105050,1755142247998,-150.0,0.00039941,2]
[379105051,1755142248008,-150.0,0.00039941,2]
[379105052,1755142248018,-1000.0,0.00039941,7]
[379105053,1755142248027,-150.0,0.00039947,2]
[379105054,1755142248036,-150.0,0.00039957,2]
[379105055,1755142248046,-350.0,0.0003996,2]
[379105056,1755142248055,-154.76724123,0.0003996,2]
[379105057,1755142248064,-1000.0,0.00039961,7]
[379105058,1755142248074,-4727.23172998,0.00039961,15]
[379105059,1755142248083,-1000.0,0.00039967,7]
[379105060,1755142248092,-24084.129304,0.00039969,2]
[379105061,1755142248101,-150.0,0.00039975,2]
[379105062,1755142248110,-150.0,0.00039978,2]
[379105063,1755142248119,-150.0,0.00039978,2]
[379105064,1755142248131,-152.0,0.0003998,21]
[379105065,1755142248140,-150.0,0.00039984,2]
[379105066,1755142248149,-1000.0,0.00039984,7]
[379105067,1755142248158,-150.0,0.00039985,2]
[379105069,1755142248168,-150.0,0.00039986,2]
[379105071,1755142248178,-151.97041497,0.00039998,2]
[379105073,1755142248187,-154.595197,0.00039999,30]
[379105075,1755142248196,-211.648967,0.00039999,30]
[379105077,1755142248206,-211.648967,0.00039999,30]
[379105079,1755142248215,-316.80956,0.00039999,30]
[379105081,1755142248226,-316.80956,0.00039999,30]
[379105083,1755142248236,-151.0,0.00039999,30]
[379105085,1755142248246,-151.0,0.00039999,30]
[379105087,1755142248256,-255.490127,0.00039999,30]
[379105090,1755142248265,-255.490127,0.00039999,30]
[379105091,1755142248275,-151.0,0.00039999,30]
[379105093,1755142248285,-240.047971,0.00039999,30]
[379105095,1755142248294,-151.0,0.00039999,30]
[379105098,1755142248303,-151.0,0.00039999,30]
[379105100,1755142248313,-151.0,0.00039999,30]
[379105101,1755142248322,-151.0,0.00039999,30]
[379105104,1755142248332,-284.985035,0.00039999,30]
[379105105,1755142248341,-284.985035,0.00039999,30]
[379105107,1755142248351,-135473.09219877,0.0004,2]
[379105109,1755142248360,-182.7241846,0.0004,120]
[379105111,1755142248370,-518.23992974,0.0004,2]
[379105113,1755142248380,-3126.48346201,0.0004,120]
[379105115,1755142248390,-166.53879723,0.0004,120]
[379105117,1755142248400,-5000.0,0.0004,120]
[379105119,1755142248410,-755.606901,0.0004,30]
[379105121,1755142248420,-755.606901,0.0004,30]
[379105123,1755142248430,-151.0,0.0004,30]
[379105125,1755142248439,-1062.471198,0.0004,30]
[379105127,1755142248449,-1062.471198,0.0004,30]
[379105129,1755142248458,-200.0,0.0004,2]
[379105131,1755142248467,-796.7115692,0.0004,120]
[379105133,1755142248477,-250.0,0.0004,120]
[379105135,1755142248486,-700.0,0.0004,2]
[379105137,1755142248495,-700.0,0.0004,2]
[379105139,1755142248504,-700.0,0.0004,2]
[379105141,1755142248513,-700.0,0.0004,2]
[379105143,1755142248522,-700.0,0.0004,2]
[379105145,1755142248531,-700.0,0.0004,2]
[379105147,1755142248540,-700.0,0.0004,2]
[379105149,1755142248549,-200.0,0.0004,7]
[379105151,1755142248558,-700.0,0.0004,2]
[379105153,1755142248568,-700.0,0.0004,2]
[379105155,1755142248578,-700.0,0.0004,2]
[379105157,1755142248587,-700.0,0.0004,2]
[379105159,1755142248596,-700.0,0.0004,2]
[379105161,1755142248605,-700.0,0.0004,2]
[379105163,1755142248614,-700.0,0.0004,2]
[379105165,1755142248623,-700.0,0.0004,2]
[379105167,1755142248632,-700.0,0.0004,2]
[379105169,1755142248641,-700.0,0.0004,2]
[379105171,1755142248650,-700.0,0.0004,2]
[379105173,1755142248658,-700.0,0.0004,2]
[379105174,1755142248667,-700.0,0.0004,2]
[379105177,1755142248676,-700.0,0.0004,2]
[379105178,1755142248685,-221.68,0.0004,2]
[379105180,1755142248693,-9355.32,0.0004,120]
[379105182,1755142248702,-250.0,0.0004,120]
[379105184,1755142248711,-250.0,0.0004,120]
[379105186,1755142248720,-200.0,0.0004,120]
[379105188,1755142248729,-206.12427703,0.0004,2]
[379105190,1755142248738,-1000.0,0.0004,30]
[379105192,1755142248747,-1000.0,0.0004,30]
[379105194,1755142248756,-1000.0,0.0004,30]
[379105196,1755142248767,-323.57013385,0.0004,30]
[379105198,1755142248777,-1000.0,0.0004,7]
[379105200,1755142248786,-257.77668,0.0004,2]
[379105202,1755142248795,-700.0,0.0004,2]
[379105204,1755142248804,-165.7,0.0004,41]
[379105206,1755142248814,-1531.13225224,0.0004,7]
[379105208,1755142248823,-803.66,0.0004,120]
[379105210,1755142248832,-250.67,0.0004,120]
[379105212,1755142248841,-270.74,0.0004,120]
[379105213,1755142248850,-296.376947,0.0004,14]
[379105214,1755142248859,-1000.0,0.0004,2]
[379105215,1755142248867,-1208.81,0.0004,5]
[379105216,1755142248876,-1266.9786,0.0004,120]
[379105217,1755142248885,-4000.0,0.0004,4]
[379105218,1755142248893,-578.08105149,0.0004,2]
[379105220,1755142248901,-1239.9007757,0.00040004,2]
[379105222,1755142248909,-151.67,0.00040008,120]
[379105224,1755142248918,-301.51,0.00040019,2]
[379105226,1755142248926,-257.77668,0.0004005,2]
[379105228,1755142248936,-153.33,0.00040054,120]
[379105230,1755142248945,-210.42,0.00040061,2]
[379105232,1755142248954,-893.0,0.00040061,2]
[379105234,1755142248963,-1172.0,0.00040061,2]
[379105236,1755142248971,-762.0,0.0004007,7]
[379105238,1755142248980,-151.67,0.00040108,120]
[379105240,1755142248989,-153.33,0.00040154,120]
[379105242,1755142248998,-151.67,0.00040208,120]
[379105244,1755142249007,-153.33,0.00040254,120]
[379105246,1755142249017,-1000.0,0.00040263,2]
[379105248,1755142249027,-152.0,0.00040293,22]
[379105250,1755142249037,-293.364995,0.000403,30]
[379105252,1755142249047,-293.364995,0.000403,30]
[379105255,1755142249056,-257.48,0.000403,30]
[379105257,1755142249066,-257.48,0.000403,30]
[379105259,1755142249076,-157.347804,0.000403,30]
[379105261,1755142249085,-347.841334,0.000403,30]
[379105263,1755142249094,-347.841334,0.000403,30]
[379105265,1755142249104,-257.77668,0.000403,3]
[379105267,1755142249113,-18641.63618457,0.000403,120]
[379105269,1755142249123,-151.67,0.00040308,120]
[379105271,1755142249134,-153.33,0.00040354,120]
[379105273,1755142249144,-11375.32,0.00040388,25]
[379105275,1755142249154,-151.67,0.00040408,120]
[379105277,1755142249164,-153.33,0.00040454,120]
[379105279,1755142249174,-151.67,0.00040508,120]
[379105281,1755142249185,-1208.81,0.00040547,5]
[379105283,1755142249195,-257.77668,0.0004055,5]
[379105285,1755142249205,-153.33,0.00040554,120]
[379105287,1755142249216,-159.34830223,0.00040588,2]
[379105290,1755142249226,-1034.49868449,0.00040588,2]
[379105292,1755142249236,-158.17281992,0.00040588,14]
[379105294,1755142249246,-184.39342979,0.00040594,120]
[379105296,1755142249256,-4727.23172998,0.00040594,15]
[379105298,1755142249266,-217.72316585,0.000406,30]
[379105300,1755142249276,-152.0,0.00040605,23]
[379105302,1755142249288,-151.67,0.00040608,120]
[379105304,1755142249298,-350.0,0.00040645,2]
[379105306,1755142249308,-153.33,0.00040654,120]
[379105308,1755142249318,-1000.0,0.0004067,3]
[379105310,1755142249328,-1358.61668324,0.0004067,3]
[379105312,1755142249338,-1000.0,0.0004067,3]
[379105314,1755142249349,-1000.0,0.0004067,3]
[379105317,1755142249361,-1000.0,0.0004067,3]
[379105319,1755142249371,-264.0,0.0004067,120]
[379105321,1755142249380,-264.0,0.0004068,120]
[379105323,1755142249390,-150.0,0.00040687,3]
[379105325,1755142249399,-150.0,0.00040687,3]
[379105327,1755142249409,-150.0,0.00040687,3]
[379105329,1755142249419,-152.00828199,0.00040687,3]
[379105331,1755142249429,-151.0,0.00040688,30]
[379105333,1755142249439,-151.0,0.00040688,30]
[379105335,1755142249448,-151.0,0.00040688,30]
[379105337,1755142249458,-907.5,0.00040688,30]
[379105339,1755142249467,-907.5,0.00040688,30]
[379105341,1755142249477,-907.5,0.00040688,30]
[379105343,1755142249487,-907.5,0.00040688,30]
[379105345,1755142249497,-907.5,0.00040688,30]
[379105347,1755142249514,-566.37,0.00040688,60]
[379105349,1755142249524,-907.5,0.00040688,30]
[379105351,1755142249534,-177.001703,0.00040688,30]
[379105353,1755142249543,-177.001703,0.00040688,30]
[379105355,1755142249553,-177.001703,0.00040688,30]
[379105357,1755142249563,-187.79791,0.00040688,30]
[379105359,1755142249573,-187.79791,0.00040688,30]
[379105361,1755142249583,-187.79791,0.00040688,30]
[379105364,1755142249593,-177.001703,0.00040688,30]
[379105366,1755142249603,-177.001703,0.00040688,30]
[379105368,1755142249612,-177.001703,0.00040688,30]
[379105370,1755142249622,-187.79791,0.00040688,30]
[379105372,1755142249633,-187.79791,0.00040688,30]
[379105374,1755142249643,-187.79791,0.00040688,30]
[379105376,1755142249653,-616463.14047671,0.00040688,30]
[379105383,1755142251140,-55.72529431,0.00040688,30]
[379105384,1755142252235,-164.08469041,0.0001899,2]
[379105385,1755142252245,-151.0,0.00020388,2]
[379105386,1755142252255,-1198.62219479,0.00028866,2]
[379105387,1755142252266,-525.73680521,0.00028866,2]
[379105388,1755142252275,-4149.0,0.00028866,2]
[379105389,1755142252285,-4149.0,0.00031866,2]
[379105390,1755142252294,-4149.0,0.00034866,2]
[379105391,1755142252304,-151.0,0.00040688,30]
[379105392,1755142252313,-151.0,0.00040688,30]
[379105393,1755142252323,-151.0,0.00040688,30]
[379105394,1755142252333,-17057.27842978,0.00040688,30]
[379105395,1755142252392,-2695.89754967,0.00040688,30]
[379105396,1755142252403,-5410.92677441,0.00040688,30]
[379105397,1755142252427,-15.83048404,0.00040688,30]
[379105398,1755142252440,-9712.1855535,0.00040688,30]
[379105399,1755142252460,-1234.0,0.00040688,30]
[379105400,1755142253281,-1720.00313007,0.00037866,2]
[379105401,1755142253369,-472.325,0.00037866,2]
[379105402,1755142253623,-1956.67186993,0.00037866,2]
[379105403,1755142253635,-10043.31085353,0.00040688,30]
[379105404,1755142253730,-3355.26890821,0.00040688,30]
[379105407,1755142288509,-162.64857057,0.000189,2]
[379105408,1755142288544,-19767.5804,0.000189,2]
[379105409,1755142288578,-404.3724,0.000189,2]
[379105410,1755142288612,-404.3724,0.000189,2]
[379105411,1755142288650,-404.3724,0.000189,2]
[379105412,1755142288684,-1000.0,0.000189,2]
[379105414,1755142292602,694.7021,0.000189,2]
[379105416,1755142318047,5000.0,0.000189,2]
[379105417,1755142318259,2073.07811788,0.0001869,2]
[379105433,1755142620200,-250.0,0.00021997,2]
[379105434,1755142620227,-0.83,0.00021997,2]
[379105440,1755142922859,34823.20059006,0.0001869,2]
[379105442,1755143111188,197.99895624,0.00018597,2]
[379105443,1755143132489,-345.34284543,0.00020991,2]
[379105444,1755143180976,250.35,0.00024924,30]
[379105446,1755143190857,1000.0,0.000185,30]
[379105449,1755143243702,-414.15817583,0.00020991,2]
[379105452,1755143357600,150.04,0.00013699,2]
[379105454,1755143383679,150.0017932,0.000205,3]
[379105457,1755143431938,-150.04,0.00020548,2]
[379105458,1755143431948,-295.6284,0.00020548,2]
[379105459,1755143431957,-250.0,0.00020771,2]
[379105460,1755143431967,-419.55513479,0.00020969,2]
[379105461,1755143431975,-234.5362041,0.00021196,2]
[379105462,1755143431984,-234.53620408,0.00021202,2]
[379105463,1755143431993,-234.53620408,0.00021208,2]
[379105464,1755143432002,-151.0,0.0002128,2]
[379105465,1755143432011,-151.0,0.00021293,2]
[379105466,1755143432020,-300.0,0.00021307,2]
[379105467,1755143432030,-1200.0,0.00021307,2]
[379105468,1755143432039,-295.6284,0.00021308,2]
[379105469,1755143432048,-295.6284,0.00021308,2]
[379105470,1755143432057,-9274.81107495,0.00021308,2]
[379105471,1755143432066,-277.35679052,0.00021308,2]
[379105472,1755143432075,-9999.99,0.00021308,2]